Cogmind - Beta 13 @@@ ROGUE MODE // 2024.05.01 @ 16:11:55 Player: Gabe+Kate4EVR Result: Destroyed by 9B-VW3(R) with Subdweller Laser Performance ------------- Evolutions (0) 0 Regions Visited (2) 400 Robots Destroyed (13) 65 Value Destroyed (280) 280 Prototype IDs (2) 40 Alien Tech Used (0) 0 Bonus (0) 0 TOTAL SCORE: 785 Bonus ------- None Cogmind --------- Core Integrity 0/250 Matter 256/300 Energy 200/200 System Corruption 0% Temperature Cool (6) Movement Rolling (110) Location -10/Subcaves Parts ------- > --- POWER (1) -------- Subdweller Power Source > --- PROPULSION (2) --- Subdweller Monowheel Subdweller Monowheel > --- UTILITY (2) ------ Medium Storage Unit Targeting Computer > --- WEAPON (2) ------- Assault Rifle Grenade Launcher > --- INVENTORY (10) --- Ion Engine Light Ion Engine Wheel Compact Wheel Subdweller Monowheel Disposable Heat Sink High-capacity Matter Pod (200) Subdweller Laser Grenade Launcher Grenade Launcher Peak State ------------ > --- POWER ------------ Subdweller Power Source > --- PROPULSION ------- Subdweller Monowheel Subdweller Monowheel > --- UTILITY ---------- Medium Storage Unit Targeting Computer > --- WEAPON ----------- Medium Laser Subdweller Laser > --- INVENTORY -------- Light Ion Engine Aluminum Leg Wheel Compact Wheel High-capacity Matter Pod High-capacity Matter Pod Assault Rifle Grenade Launcher Grenade Launcher Grenade Launcher [Rating: 12] Favorites ----------- Power Ion Engine Engine Ion Engine Propulsion Aluminum Leg Leg Aluminum Leg Wheel Subdweller Monowheel Flight Unit Flight Unit Utility Medium Storage Unit Device Heat Sink Storage Medium Storage Unit Processor Targeting Computer Protection Light Armor Plating Weapon Medium Laser Energy Gun Medium Laser Ballistic Gun Subdweller Machine Gun Launcher Grenade Launcher Build | -11 -10 -10 ------- Run | Yrd Mat Sub Slots Evolved . | . . . Power . | . . . Propulsion . | . . . Utility . | . . . Weapon . | . . . Parts Attached 24 | 6 3 15 Power 3 | 1 . 2 Engine 3 | 1 . 2 Core . | . . . Reactor . | . . . Propulsion 9 | 2 . 7 Treads . | . . . Leg 2 | 2 . . Wheel 6 | . . 6 Hover . | . . . Flight 1 | . . 1 Utility 6 | 1 3 2 Device 2 | . 1 1 Storage 2 | 1 1 . Processor 1 | . . 1 Hackware . | . . . Protection 1 | . 1 . Artifact . | . . . Weapon 6 | 2 . 4 Energy Gun 3 | 2 . 1 Energy Cannon . | . . . Ballistic Gun 2 | . . 2 Ballistic Cannon . | . . . Launcher 1 | . . 1 Special Weapon . | . . . Impact Weapon . | . . . Slashing Weapon . | . . . Piercing Weapon . | . . . Special Melee Weapon . | . . . Unidentified Prototypes . | . . . Parts Lost 3 | . . 3 Power . | . . . Propulsion 1 | . . 1 Utility . | . . . Weapon 2 | . . 2 Highest Loss Streak 1 | . . 1 To Critical Strikes 1 | . . 1 Average Slot Usage (%) 95 | . 99 93 Engine 14 | . 14 14 Leg 17 | . 28 8 Wheel 7 | . . 13 Device 9 | . 10 8 Storage 14 | . 14 14 Processor 2 | . . 5 Protection 1 | . 3 . Energy Gun 23 | . 28 19 Ballistic Gun 4 | . . 8 Naked Turns . | . . . Heaviest Build 22 | 14 22 22 Greatest Support 40 | 20 20 40 Greatest Overweight (x) 5 | 1 1 5 Average Overweight (x) . | . . . Largest Inventory Capacity 10 | 8 10 10 Average Capacity 9 | 7 9 10 Most Carried 10 | 6 10 10 Average Carried 9 | 3 9 9 Final Capacity 10 | 8 10 10 Final Carried 10 | 6 10 10 Class Distribution -------------------- 100% | Mutant Dominant Class ---------------- Mutant | -10/Materials Mutant | -10/Subcaves Resources | -11 -10 -10 ----------- Run | Yrd Mat Sub Matter Collected 635 | 214 45 376 Remotely . | . . . Salvage Created 320 | . 45 275 Parts 20 | . 3 17 Haulers Intercepted . | . . . Recyclers Shooed . | . . . Parts Field Recycled . | . . . Retrieved Matter . | . . . Parts Self-Destructed 18 | . . 18 Prevented . | . . . Kills | -11 -10 -10 ------- Run | Yrd Mat Sub Combat Hostiles Destroyed 13 | . 3 10 Guns 13 | . 3 10 Classes Destroyed 2 | . 1 1 Swarmer 8 | . 3 5 Subdweller 5 | . . 5 Best Kill Streak 4 | . 3 4 Combat Bots Only 4 | . 3 4 Max Kills in Single Turn 1 | . 1 1 Gunslinging . | . . . Exploded . | . . . Melee . | . . . Uniques/NPCs Destroyed . | . . . Combat | -11 -10 -10 -------- Run | Yrd Mat Sub Hostile Shots Fired 69 | . 7 62 Missed 15 | . . 15 Damage Taken 848 | . 58 790 Core 266 | . 8 258 Absorbed by Shields . | . . . Core Remaining (%) 100 | 100 . . Volleys Fired 51 | . 4 47 Largest 2 | . 2 2 Hottest 110 | . 100 110 Shots Fired 95 | . 8 87 Gun 94 | . 8 86 Cannon . | . . . Launcher 1 | . . 1 Special . | . . . Kinetic 19 | . . 19 Thermal 75 | . 8 67 Explosive 1 | . . 1 Electromagnetic . | . . . Robot Hit Streak 15 | . 4 15 Robot Miss Streak 4 | . 2 4 Penetration Max . | . . . Secondary Targets 3 | . 1 2 Max Gunslinging Chain 1 | . 1 1 Shots Hit Robots 53 | . 5 48 Core Hits 19 | . 3 16 Critical Kills . | . . . Critical Parts Destroyed . | . . . Critical Strikes 2 | . . 2 Burn 2 | . . 2 Melee Attacks . | . . . Impact . | . . . Slashing . | . . . Piercing . | . . . Sneak Attacks . | . . . Combat Hostiles . | . . . Follow-up Attacks . | . . . Damage Inflicted 855 | . 61 794 Guns 757 | . 61 696 Cannons . | . . . Explosions 98 | . . 98 Melee . | . . . Ramming . | . . . Kinetic 157 | . . 157 Thermal 600 | . 61 539 Explosive 98 | . . 98 Electromagnetic . | . . . Impact . | . . . Slashing . | . . . Piercing . | . . . Highest Corruption . | . . . Average Corruption . | . . . Corruption Purged . | . . . Corruption Blocked . | . . . Overload Shots . | . . . Overflow Damage . | . . . Projectiles . | . . . Explosions . | . . . Melee . | . . . Knockbacks . | . . . Impact . | . . . Kinetic . | . . . Secondary . | . . . Self-Inflicted Damage 40 | . . 40 Shots 1 | . . 1 Rammed . | . . . Targets Rammed . | . . . Kicked . | . . . Crushed . | . . . Highest Temperature 36 | . 36 . Average Temperature 18 | . 18 . Received Heat Transfer 48 | . . 48 Siege Activations . | . . . Robots Corrupted . | . . . Combat Hostiles . | . . . Parts Fried . | . . . Impact Corruptions . | . . . Robots Melted . | . . . Combat Hostiles . | . . . Parts Melted 3 | . . 3 Heat Transferred 1655 | . 185 1470 Parts Sabotaged . | . . . Parts Stolen . | . . . Parts Stripped . | . . . Power Chain Reactions . | . . . Alert | -11 -10 -10 ------- Run | Yrd Mat Sub Peak Influence 70 | . 70 . Initial . | . . . Average 4 | . 4 . Maximum Alert Level . | . . . Low Security (%) 100 | 100 100 . Level 1 . | . . . Level 2 . | . . . Level 3 . | . . . Level 4 . | . . . Level 5 . | . . . High Security . | . . . Max Security . | . . . Squads Dispatched . | . . . Investigation . | . . . Extermination . | . . . Reinforcement . | . . . Assault . | . . . Garrison . | . . . Intercept . | . . . Searches Triggered . | . . . Construction Impeded . | . . . Haulers Reinforced . | . . . Active Scanning Responses . | . . . Cargo Convoy Interrupts . | . . . Stealth | -11 -10 -10 --------- Run | Yrd Mat Sub Distress Signals . | . . . Communications Jammed . | . . . Distress Signals . | . . . Times Spotted 19 | . 3 16 Peak Tracking Total 4 | . 2 4 Tactical Retreats 2 | . . 2 Traps | -11 -10 -10 ------- Run | Yrd Mat Sub Traps Triggered . | . . . Indirectly . | . . . Trap Hack Attempts . | . . . Triggered . | . . . Disarmed . | . . . Reprogrammed . | . . . Reused . | . . . Traps Extracted . | . . . Installed . | . . . Triggered . | . . . Machines | -11 -10 -10 ---------- Run | Yrd Mat Sub Machines Disabled . | . . . Max in Single Turn . | . . . Machines Repaired . | . . . Machines Dismantled . | . . . Machines Sabotaged . | . . . Overloaded Fab Kills . | . . . Hacking | -11 -10 -10 --------- Run | Yrd Mat Sub Machines Accessed 4 | . 4 . Terminals 3 | . 3 . Fabricators . | . . . Repair Stations . | . . . Recycling Units 1 | . 1 . Scanalyzers . | . . . Garrison Access . | . . . Total Hacks 9 | . 9 . Successful 3 | . 3 . Failed 6 | . 6 . Catastrophic 1 | . 1 . Database Lockouts . | . . . Manual 3 | . 3 . Terminals 5 | . 5 . Fabricators . | . . . Repair Stations . | . . . Recycling Units 4 | . 4 . Scanalyzers . | . . . Garrison Access . | . . . Terminal Hacks 1 | . 1 . Prototype ID Bank 1 | . 1 . Fabricator Hacks . | . . . Repair Station Hacks . | . . . Recycling Unit Hacks 2 | . 2 . Report Inventory 1 | . 1 . Retrieve Components 1 | . 1 . Scanalyzer . | . . . Garrison Access Hacks . | . . . Unauthorized Hacks . | . . . Terminals . | . . . Fabricators . | . . . Repair Stations . | . . . Recycling Units . | . . . Scanalyzers . | . . . Garrison Access . | . . . Data Cores Recovered . | . . . Used . | . . . Hacking Detections 3 | . 3 . Full Trace Events 1 | . 1 . Feedback Events . | . . . Feedback Blocked . | . . . Robot Schematics Acquired . | . . . Robots Built . | . . . Authchips . | . . . Time . | . . . Total Robot Build Rating . | . . . Part Schematics Acquired . | . . . Parts Built . | . . . Authchips . | . . . Time . | . . . Total Part Build Rating . | . . . Parts Repaired . | . . . Time . | . . . Parts Recycled . | . . . Recycled Matter . | . . . Retrieved Matter . | . . . Retrieved Components 2 | . 2 . Parts Scanalyzed . | . . . Part Schematics Acquired . | . . . Parts Damaged . | . . . Bothacking | -11 -10 -10 ------------ Run | Yrd Mat Sub Used RIF Installer . | . . . Robots Hacked . | . . . Non-combat . | . . . Combat . | . . . Robot Hacks Applied . | . . . Relay Couplers Released . | . . . Fabnet Peak Effective % . | . . . Robots Rewired . | . . . Allies Hacked . | . . . Hacks Repelled . | . . . Allies | -11 -10 -10 -------- Run | Yrd Mat Sub Total Allies . | . . . Largest Group . | . . . Highest-Rated Group . | . . . Highest-Rated Ally . | . . . Total Orders . | . . . Ally Attacks . | . . . Total Damage . | . . . Kills . | . . . Allies Corrupted . | . . . Allies Melted . | . . . Intel | -11 -10 -10 ------- Run | Yrd Mat Sub Robot Analysis Total . | . . . Derelict Logs Recovered 1 | . . 1 Drone Launches . | . . . Drone Recoveries . | . . . Exploration | -11 -10 -10 ------------- Run | Yrd Mat Sub Turns Passed 1692 | 67 718 907 Spaces Moved 659 | 46 158 455 Core 4 | 4 . . Treads . | . . . Legs 380 | 42 158 180 Wheels 274 | . . 274 Hover . | . . . Flight 1 | . . 1 Fastest Speed 50 | 50 120 95 Average Speed 148 | 115 145 153 Slowest Speed 440 | 120 190 440 Overloaded Moves . | . . . Propulsion Burnouts . | . . . Robots Hopped . | . . . Cave-ins Triggered . | . . . Exploration Rate (%) 23 | 3 31 35 Regions Visited 2 Branch Regions 1 Pre-discovered Areas 1 | . . 1 Known Exits Taken . | . . . Unknown Exits Taken 2 | 1 1 . Scrap Searched . | . . . Spaces Dug . | . . . Terrain Destroyed 6 | . . 6 Melee . | . . . Projectile . | . . . AOE 6 | . . 6 Terrain Rammed . | . . . Walls Destroyed . | . . . Machines Disabled . | . . . Actions | -11 -10 -10 --------- Run | Yrd Mat Sub Total 1279 | 57 640 582 Wait 512 | . 464 48 Move 657 | 45 157 455 Hop . | . . . Pick Up 16 | 6 7 3 Fast Attach 16 | 6 2 8 Attach 2 | . . 2 Detach 2 | . . 2 Swap 6 | . 1 5 Drop 17 | . 5 12 Fire 51 | . 4 47 Melee . | . . . Ram . | . . . Kick . | . . . Crush . | . . . Escape Stasis . | . . . Rewire . | . . . Trap . | . . . Miscellaneous . | . . . Route ------- -11/Scrapyard -10/Materials -10/Subcaves History --------- Turn | Location | Event 8 | -11/Scrapyard | Discovered new exit (range 15) 68 | -11/Scrapyard | Entered Materials 308 | -10/Materials | Build established: Mutant 749 | -10/Materials | Discovered new exit (range 11) 786 | -10/Materials | Entered Subcaves 1219 | -10/Subcaves | Shifting Twisted Machinery released Sub. Optics 1243 | -10/Subcaves | Shifting Twisted Machinery released Sub. Monowheel 1334 | -10/Subcaves | Core integrity fell below 50% 1508 | -10/Subcaves | Shifting Twisted Machinery released Sub. Optics 1516 | -10/Subcaves | Shifting Twisted Machinery released Sub. Monowheel 1569 | -10/Subcaves | Core integrity fell below 20% 1693 | -10/Subcaves | Destroyed by 9B-VW3(R) with Subdweller Laser Last Messages --------------- 01566_ Critical hit (Destroy). 01566_ Med. Laser destroyed. 01568_ Flight Unit fries itself beyond repair. 01570_ S-10 Pest destroyed. 01574_ Acquired 29 matter. 01575_ Flight Unit fries itself beyond repair. 01576_ Acquired 15 matter. 01578_ Flight Unit fries itself beyond repair. 01580_ Dropped Sub. Monowheel. 01580_ Acquired Flight Unit. 01581_ Flight Unit fries itself beyond repair. 01586_ Acquired Sub. Monowheel. 01587_ Dropped Flight Unit. 01589_ Lgt. Assault Rifle fries itself beyond repair. 01589_ Acquired Sub. Monowheel. 01591_ Acquired 5 matter. 01592_ Acquired 13 matter. 01602_ Acquired derelict log, extracted data. World map updated: -8/Materials. 01676_ 9B-VW3(R) emerges from the Twisted Machinery. Map ----- +----------------------------------------------------+ | ?### ###?# #?????????????????????????? | | ???## #?# """???????????????????????? | | ????## #### ??????????????????????? | | ?????# ##??# ## """ ?????????????????????? | | ####?# ###?## ###?# #?????????????????????? | | # ### #??###????? ????????????????????? | | #?????????? ????????????????????? | | #??????????? ????????????????????? | | ## #??????????? "???????????????????? | | ### #??????????? " "???????????????????? | | #??####????????????"""????????????????????? | | ##?????????????????????????????????????????? | | ##????###???????????????????????????????????? | | ###????## ##??????????????????????????????????? | | ###?????## #??????????????????????????????????? | | ##?????## #??????????????????????????????????? | | ####??# ##??????????????????????????????????? | | #??## ##???????????????????????????????????? | | # ###?# #????????????????????????????????????? | | ## ### #######????###???????????????????????? | | ?#### ## ## ##??## ##??????????????????????? | | ????# #??# #??????????????????????? | | ????# #### #??????????????????????? | | ???# ## ######?????????????????? | | ??# ## ## #?????????????????? | | ?# ### @ #?????????????????? | | ##?# ## "RR "#?????????????????? | | #??# ## ### ""%#?????????????????? | | #??# #########?# "" #????????????????? | | #??# #?????????# ## # " ???????????????? | | #??# #?????????##??### " ?????????????? | | # ##??# #???????????????? " ????????????? | | # ????? ##???????????????? "" "??????????? | | #????? ??????????????????#"" ? "??????????? | | ??????? ???????????????????#"" ?????????????? | | ???????? ???????????????????????" "????????????? | | ???????? ????????????????????????? ????????????? | | ????????? ??????????????????????????????????????? | | ?????????????????????????????????????????????????? | | ?????????????????????????????????????????????????? | | ?????????????????????????????????????????????????? | | ?????????????????????????????????????????????????? | | ?????????????????????????????????????????????????? | | ?????????????????????????????????????????????????? | | ?????????????????????????????????????????????????? | | ?????????????????????????????????????????????????? | | ?????????????????????????????????????????????????? | | ?????????????????????????????????????????????????? | | ?????????????????????????????????????????????????? | | ?????????????????????????????????????????????????? | +----------------------------------------------------+ Best States ------------- Heat Dissipation 35 Coolant Potential 50 Energy Generation 15 Energy Capacity 250 Matter Stores 300 Matter Capacity 300 Sight Range 16 Terrain Scan Density 10 Armor Coverage 150 Evasion (%) 55 Targeting Accuracy 5 Item Schematics ----------------- None Robot Schematics ------------------ None Fabricated ------------ Nothing Alien Tech Used ----------------- None Achievements -------------- None Challenges ------------ None Game ------ Seed BackupHeatAutohacker Manual? 0 Play Time 00:06:43 Cumulative 142.5 hours Start 2024.05.01 @ 16:05:27 End 2024.05.01 @ 16:11:55 Sessions 1 Manual Loads 0 Difficulty Rogue Special Mode None Game No. 285 Rogue 285 Adventurer 0 Explorer 0 Win Type - Total 0 Types 0/0/0/0/0/0/0/0/0 Lore% 37 Gallery% 57 Achievement% 39 Wizard Run 0 Options --------- Layout 0 ASCII 0 Keyboard 1 Movement Numpad Keybinds 0 Fullscreen 2 Font 18/X11 Map View 76x50 Zoom Use 0% Tactical HUD 1 Map Filters NONE Filters NONE Steam 1 RUN: 3d34781e-60f9-4b0c-8efc-1dbd6ce6b6dd